Workbook

Sheet Table 1
A1: ESCRITÓRIO DE LICENCIAMENTO - TABELA DE PREÇOS E SERVIÇOS PARA O ANO DE 2023
D3: 1 UFM ¹ | E3: 5.2556
D5: Valores expressos em R$
A6: Código | C6: Aprovação de condomínio por unidades autônomas de habitações unifamiliares | D6: UFM | E6: Valor
A7: 410 | B7: ACUAHU | C7: Terrenos com área de até 600m² | D7: 50 | E7: =$E$3*D7 -> 262.78
A8: 411 | B8: ACUAHU | C8: Terrenos com mais de 600m² de área, até 1.500m² | D8: 125 | E8: 656.95
A9: 412 | B9: ACUAHU | C9: Terrenos com mais de 1.500m² de área, até 3.000m² | D9: 150 | E9: 788.34
A10: 413 | B10: ACUAHU | C10: Terrenos com mais de 3.000m², até 5.000m² | D10: 175 | E10: 919.73
A11: 414 | B11: ACUAHU | C11: Terrenos com mais de 5.000m², até 22.500m² | D11: 250 | E11: 1313.9
A12: 415 | B12: ACUAHU | C12: Terrenos com mais de 22.500m² de área (AIO - Área de Ocupação Intensiva) | D12: 350 | E12: 1839.46
A13: 416 | B13: ACUAHU | C13: Terrenos com mais de 22.500m2 de área (AOR – Área de Ocupação Rarefeita) | D13: 150 | E13: 788.34
A15: Código | C15: Aprovação de condomínio por unidades autônomas de habitações multifamiliares | D15: UFM | E15: Valor
A16: - | B16: ACUAHM | C16: Terrenos com área de até 600m² | D16: 50 | E16: =$E$3*D16 -> 262.78
A17: - | B17: ACUAHM | C17: Terrenos com mais de 600m² de área, até 1.500m² | D17: 125 | E17: 656.95
A18: - | B18: ACUAHM | C18: Terrenos com mais de 1.500m² de área, até 3.000m² | D18: 150 | E18: 788.34
A19: - | B19: ACUAHM | C19: Terrenos com mais de 3.000m² de área, até 5.000m² | D19: 175 | E19: 919.73
A20: - | B20: ACUAHM | C20: Terrenos com mais de 5.000m² de área, até 22.500m² | D20: 250 | E20: 1313.9
A21: - | B21: ACUAHM | C21: Terrenos com mais de 22.500m² de área (AIO - Área de Ocupação Intensiva) | D21: 350 | E21: 1839.46
A22: - | B22: ACUAHM | C22: Terrenos com mais de 22.500m2 de área (AOR – Área de Ocupação Rarefeita) | D22: 150 | E22: 788.34
A24: Código | C24: Aprovação e licenciamento de projeto de edificação | D24: UFM | E24: Valor
A25: 610 | B25: ALPE | C25: Com área de até 100m² | D25: 100 | E25: =$E$3*D25 -> 525.56
A26: 611 | B26: ALPE | C26: Com mais de 100m² de área, até 200m² | D26: 250 | E26: 1313.9
A27: 612 | B27: ALPE | C27: Com mais de 200 m² de área, até 300m² | D27: 400 | E27: 2102.24
A28: 613 | B28: ALPE | C28: Com mais de 300 m² de área, até 400m² | D28: 550 | E28: 2890.58
A29: 614 | B29: ALPE | C29: Com mais de 400 m² de área, até 500m² | D29: 600 | E29: 3153.36
A30: 615 | B30: ALPE | C30: Com mais de 500 m² de área, até 600m² | D30: 650 | E30: 3416.14
A31: 616 | B31: ALPE | C31: Com mais de 600 m² de área, até 700m² | D31: 700 | E31: 3678.92
A32: 617 | B32: ALPE | C32: Com mais de 700 m², de área, até 800m² | D32: 750 | E32: 3941.7
A33: 618 | B33: ALPE | C33: Com mais de 800 m² de área | D33: 1300 + VF*
A34: 619 | B34: ALPE | C34: Reconsideração de aprovação de projeto por arquivamento ou ideferimento | D34: 30 | E34: =$E$3*D34 -> 157.668
A35: 620 | B35: ALPE | C35: Modificação de projeto | D35: MQM*
A36: * VF = 100 UFMs para cada 500m2 de área ou fração;
A37: * MQM = metro quadrado modificado, a maior ou menor, conforme valor (em UFM) do metro quadrado deste item.
A39: =A1 -> ESCRITÓRIO DE LICENCIAMENTO - TABELA DE PREÇOS E SERVIÇOS PARA O ANO DE 2023
D41: 1 UFM ¹ | E41: =E3 -> 5.2556
D43: Valores expressos em R$
A44: Código | C44: Vistoria de projeto de edificação: | D44: UFM | E44: Valor
A45: 710 | B45: VPE | C45: Com área de até 100m² | D45: 50 | E45: =$E$3*D45 -> 262.78
A46: 711 | B46: VPE | C46: Com mais de 100m² de área, até 200m² | D46: 125 | E46: 656.95
A47: 712 | B47: VPE | C47: Com mais de 200m² de área, até 300m² | D47: 200 | E47: 1051.12
A48: 713 | B48: VPE | C48: Com mais de 300m² de área, de até 400m² | D48: 275 | E48: 1445.29
A49: 714 | B49: VPE | C49: Com mais de 400m² de área, de até 500m² | D49: 300 | E49: 1576.68
A50: 715 | B50: VPE | C50: Com mais de 500m² de área, de até 600m² | D50: 325 | E50: 1708.07
A51: 716 | B51: VPE | C51: Com mais de 600m² de área, de até 700m² | D51: 350 | E51: 1839.46
A52: 717 | B52: VPE | C52: Com mais de 700m² de área, de até 800m² | D52: 375 | E52: 1970.85
A53: 718 | B53: VPE | C53: Com mais de 800 m² de área | D53: 1300 + VF*
A54: * VF = 100 UFMs para cada 1.000m2 ou fração.
A56: Código | C56: Revistoria de projeto de edificação: | D56: UFM | E56: Valor
A57: 810 | B57: RVPE | C57: Primeira revistoria de vistoria | D57: isento | E57: -
A58: 811 | B58: RVPE | C58: Segunda revistoria de vistoria | D58: isento | E58: -
A59: 812 | B59: RVPE | C59: Terceira revistoria de vistoria | D59: 5% da TV*
A60: 813 | B60: RVPE | C60: Quarta revistoria de vistoria | D60: 10% da TV*
A61: 814 | B61: RVPE | C61: Quinta revistoria de vistoria | D61: 15% da TV*
A62: 815 | B62: RVPE | C62: Demais revistorias de vistoria | D62: 25% da TV*
A63: * TV = valor da Taxa de Vistoria.
A65: Código | C65: Aprovação de projetos complementares: | D65: UFM | E65: Valor
C66: Projeto geométrico, por pista, medindo até 300m | D66: 50 | E66: =$E$3*D66 -> 262.78
C67: Projeto geométrico, por pista, medindo mais de 300m até 3.000m | D67: 75 | E67: =$E$3*D67 -> 394.17
C68: Projeto geométrico, por pista, medindo mais de 3.000m | D68: 100 | E68: 525.56
C69: Projeto de pavimentação, por pista, medindo até 300m | D69: 50 | E69: 262.78
C70: Projeto de pavimentação, por pista, medindo mais de 300m até 3.000m | D70: 75 | E70: 394.17
C71: Projeto de pavimentação, por pista, medindo mais de 3.000m | D71: 100 | E71: 525.56
C72: Projeto de iluminação pública, por pista, medindo até 300m | D72: 50 | E72: 262.78
C73: Projeto de iluminação pública, por pista, medindo mais de 300m até 3.000m | D73: 75 | E73: 394.17
C74: Projeto de iluminação pública, por pista, medindo mais de 3.000m | D74: 100 | E74: 525.56
C75: Projeto de arborização | D75: 150 | E75: 788.34
C76: Projeto de praça | D76: 150 | E76: 788.34
C77: Projeto de obra de arte, vão medindo até 10m | D77: 250 | E77: 1313.9
C78: Projeto de obra de arte, vão medindo mais de 10m até 30m | D78: 500 | E78: 2627.8
C79: Projeto de obra de arte, vão medindo mais de 30m | D79: 750 | E79: 3941.7
C80: Comparecimento para reanálise | D80: isento | E80: -
A82: Código | C82: Aprovação de Estudo de Viabilidade Urbanística (EVU): | D82: UFM | E82: Valor
A83: 1110 | B83: EVU | C83: Aprovação de estudo de viabilidade urbanística (sem tramitação em comissões) | D83: 250 | E83: =$E$3*D83 -> 1313.9
A84: 1120 | B84: EVU | C84: Aprovação de projeto urbanístico da Gerência de Regularização de Loteamentos (GRL) | D84: 500 | E84: =$E$3*D84 -> 2627.8
A86: =A39 -> ESCRITÓRIO DE LICENCIAMENTO - TABELA DE PREÇOS E SERVIÇOS PARA O ANO DE 2023
D88: 1 UFM ¹ | E88: =E3 -> 5.2556
D90: Valores expressos em R$
A91: Código | C91: Análise, aprovação e licenciamento de parcelamento do solo e edificação pela Comissão de Análise e Aprovação de Demanda Habitacional Prioritária (CAADHAP): | D91: UFM | E91: Valor
A92: 2010 | B92: CAADHAP | C92: Elaboração e emissão de diretrizes para áreas com até 5.000m² | D92: 150 | E92: =$E$3*D92 -> 788.34
A93: 2011 | B93: CAADHAP | C93: Elaboração e emissão de diretrizes para áreas com mais de 5.000m² até 10.000m² | D93: 160 | E93: 840.896
A94: 2012 | B94: CAADHAP | C94: Elaboração e emissão de diretrizes para áreas com mais de 10.000m² até 22.500m² | D94: 170 | E94: 893.452
A95: 2013 | B95: CAADHAP | C95: Elaboração e emissão de diretrizes para áreas com mais de 22.500m² até 40.000m² | D95: 180 | E95: 946.008
A96: 2014 | B96: CAADHAP | C96: Elaboração e emissão de diretrizes para áreas com mais de 40.000m² até 100.000m² | D96: 200 | E96: 1051.12
A97: 2015 | B97: CAADHAP | C97: Elaboração e emissão de diretrizes para áreas com mais de 100.000m² até 200.000m² | D97: 220 | E97: 1156.232
A98: 2016 | B98: CAADHAP | C98: Elaboração e emissão de diretrizes para áreas com mais de 200.000m² até 300.000m² | D98: 250 | E98: 1313.9
A99: 2017 | B99: CAADHAP | C99: Elaboração e emissão de diretrizes para áreas com mais de 300.000m² | D99: 280 | E99: 1471.568
A100: 2018 | B100: CAADHAP | C100: Reconsideração de diretrizes | D100: isento | E100: -
A101: 2020 | B101: CAADHAP | C101: Aprovação de EVU para áreas com até 5.000m² | D101: 300 | E101: =$E$3*D101 -> 1576.68
A102: 2021 | B102: CAADHAP | C102: Aprovação de EVU para áreas com mais de 5.000m², até 10.000m² | D102: 320 | E102: 1681.792
A103: 2022 | B103: CAADHAP | C103: Aprovação de EVU para áreas com mais de 10.000m², até 22.500m² | D103: 340 | E103: 1786.904
A104: 2023 | B104: CAADHAP | C104: Aprovação de EVU para áreas com mais de 22.500m², até 40.000m² | D104: 360 | E104: 1892.016
A105: 2024 | B105: CAADHAP | C105: Aprovação de EVU para áreas com mais de 40.000m², até 100.000m² | D105: 400 | E105: 2102.24
A106: 2025 | B106: CAADHAP | C106: Aprovação de EVU para áreas com mais de 100.000m², até 200.000m² | D106: 440 | E106: 2312.464
A107: 2026 | B107: CAADHAP | C107: Aprovação de EVU para áreas com mais de 200.000m², até 300.000m² | D107: 500 | E107: 2627.8
A108: 2027 | B108: CAADHAP | C108: Aprovação de EVU para áreas com mais de 300.000m² | D108: 560 | E108: 2943.136
A109: 2028 | B109: CAADHAP | C109: Reconsideração de EVU | D109: isento | E109: -
A110: 2031 | B110: CAADHAP | C110: Aprovação de projeto urbanístico 1ª fase, para áreas de 22.500m² até 40.000m² | D110: 120 | E110: =$E$3*D110 -> 630.672
A111: 2032 | B111: CAADHAP | C111: Aprovação de projeto urbanístico 1ª fase, para áreas com mais de 40.000m², até 100.000m² | D111: 160 | E111: 840.896
A112: 2033 | B112: CAADHAP | C112: Aprovação de projeto urbanístico 1ª fase, para áreas com mais de 100.000m² até 200.000m² | D112: 200 | E112: 1051.12
A113: 2034 | B113: CAADHAP | C113: Aprovação de projeto urbanístico 1ª fase, para áreas com mais de 200m² até 300.000m² | D113: 240 | E113: 1261.344
A114: 2035 | B114: CAADHAP | C114: Aprovação de projeto urbanístico 1ª fase, para áreas com mais de 300.000m² | D114: 280 | E114: 1471.568
A115: 2041 | B115: CAADHAP | C115: Aprovação de projeto urbanístico 2ª fase, para áreas com mais de 22.500m² até 40.000m² | D115: 60 | E115: 315.336
A116: 2042 | B116: CAADHAP | C116: Aprovação de projeto urbanístico 2ª fase, para áreas com mais de 40.000m² até 100.000m² | D116: 80 | E116: 420.448
A117: 2043 | B117: CAADHAP | C117: Aprovação de projeto urbanístico 2ª fase, para áreas com mais de 100.000m² até 200.000m² | D117: 100 | E117: 525.56
A118: 2044 | B118: CAADHAP | C118: Aprovação de projeto urbanístico 2ª fase, para áreas com mais de 200.000m² até 300.000m² | D118: 120 | E118: 630.672
A119: 2045 | B119: CAADHAP | C119: Aprovação de projeto urbanístico 2ª fase, para áreas com mais de 300.000m² | D119: 140 | E119: 735.784
A120: 2051 | B120: CAADHAP | C120: Aprovação de projeto urbanístico 3ª fase, para áreas com mais de 22.500m² até 40.000m² | D120: 40 | E120: 210.224
A121: 2052 | B121: CAADHAP | C121: Aprovação de projeto urbanístico 3ª fase, para áreas com mais de 40.000m² até 100.000m² | D121: 60 | E121: 315.336
A122: 2053 | B122: CAADHAP | C122: Aprovação de projeto urbanístico 3ª fase, para áreas com mais de 100.000m² até 200.000m² | D122: 80 | E122: 420.448
A123: 2054 | B123: CAADHAP | C123: Aprovação de projeto urbanístico 3ª fase, para áreas com mais de 200.000m² até 300.000m² | D123: 100 | E123: 525.56
A124: 2055 | B124: CAADHAP | C124: Aprovação de projeto urbanístico 3ª fase, para áreas com mais de 300.000m² | D124: 120 | E124: 630.672
A125: 2061 | B125: CAADHAP | C125: Licenciamento urbanístico para áreas de até 40.000m² | D125: 40 | E125: 210.224
A126: 2062 | B126: CAADHAP | C126: Licenciamento urbanístico para áreas com mais de 40.000m² até 100.000m² | D126: 60 | E126: 315.336
A127: 2063 | B127: CAADHAP | C127: Licenciamento urbanístico para áreas com mais de 100.000m² até 200.000m² | D127: 80 | E127: 420.448
A128: 2065 | B128: CAADHAP | C128: Licenciamento urbanístico para áreas com mais de 200.000m² até 300.000m² | D128: 100 | E128: 525.56
A129: 2066 | B129: CAADHAP | C129: Licenciamento urbanístico para áreas com mais de 300.000m² | D129: 120 | E129: 630.672
A131: Obs: São isentos das taxas deste item os empreendimentos destinados a familias com renda familiar de até 3 (três) salários minimos; bem como é reduzida, em 50% (cinquenta por cento), a taxa em casos de empreendimentos destinados a familias com renda familiar acima de 3 (três) salários minimos, até 6 (seis) salários minimos.
A134: =A86 -> ESCRITÓRIO DE LICENCIAMENTO - TABELA DE PREÇOS E SERVIÇOS PARA O ANO DE 2023
D136: 1 UFM ¹ | E136: =E3 -> 5.2556
D138: Valores expressos em R$
A139: Código | C139: Aprovação e licenciamento para parcelamento do solo urbano | D139: UFM | E139: Valor
B140: SPM GERAL | C140: Terrenos com área de até 300m² | D140: 25 x NL* | E140: -
B141: SPM GERAL | C141: Terrenos com mais de 300m2 de área, até 1.000m2 | D141: 35 x NL* | E141: -
B142: SPM GERAL | C142: Terrenos com mais de 1.000m2 de área, até 22.500m² | D142: 50 x NL* | E142: -
B143: SPM GERAL | C143: Nos casos previstos do art. 152 da Lei Complementar n° 434, de 1999, e alterações posteriores | D143: 200 | E143: =$E$3*D143 -> 1051.12
B144: SPM GERAL | C144: Revalidação de projeto de parcelamento | D144: 50 | E144: 262.78
A145: *NL = Número de lotes resultantes do parcelamento. | Obs: Em todos os casos, a área a ser considerada deverá ser a área da matrícula.
A148: Código | C148: Análise e aprovação de EVU de parcelamento do solo e edificação pela Comissão de Análise Urbanística e Gerenciamento (CAUGE): | D148: UFM | E148: Valor
A149: 3010 | B149: CAUGE | C149: Elaboração e emissão de diretrizes para áreas com até 5.000m² | D149: 350 | E149: =$E$3*D149 -> 1839.46
A150: 3011 | B150: CAUGE | C150: Elaboração e emissão de diretrizes para áreas com mais de 5.000m² até 10.000m² | D150: 400 | E150: 2102.24
A151: 3012 | B151: CAUGE | C151: Elaboração e emissão de diretrizes para áreas com mais de 10.000m² até 22.500m² | D151: 420 | E151: 2207.352
A152: 3013 | B152: CAUGE | C152: Elaboração e emissão de diretrizes para áreas com mais de 22.500m² até 40.000m² | D152: 450 | E152: 2365.02
A153: 3014 | B153: CAUGE | C153: Elaboração e emissão de diretrizes para áreas com mais de 40.000m² até 100.000m² | D153: 500 | E153: 2627.8
A154: 3015 | B154: CAUGE | C154: Elaboração e emissão de diretrizes para áreas com mais de 100.000m², até 200.000m² | D154: 550 | E154: 2890.58
A155: 3016 | B155: CAUGE | C155: Elaboração e emissão de diretrizes para áreas com mais de 200.000m² até 300.000m² | D155: 600 | E155: 3153.36
A156: 3017 | B156: CAUGE | C156: Elaboração e emissão de diretrizes para áreas com mais de 300.000m² | D156: 700 | E156: 3678.92
A157: 3018 | B157: CAUGE | C157: Reconsideração de diretrizes | D157: isento | E157: -
A158: 3020 | B158: CAUGE | C158: Aprovação de EVU para áreas com até 5.000m² | D158: 750 | E158: =$E$3*D158 -> 3941.7
A159: 3021 | B159: CAUGE | C159: Aprovação de EVU para áreas com mais de 5.000m², até 10.000m² | D159: 800 | E159: 4204.48
A160: 3022 | B160: CAUGE | C160: Aprovação de EVU para áreas com mais de 10.000m² até 22.500m² | D160: 850 | E160: 4467.26
A161: 3023 | B161: CAUGE | C161: Aprovação de EVU para áreas com mais de 22.500m² até 40.000m² | D161: 900 | E161: 4730.04
A162: 3024 | B162: CAUGE | C162: Aprovação de EVU para áreas com mais de 40.000m² até 100.000m² | D162: 1000 | E162: 5255.6
A163: 3025 | B163: CAUGE | C163: Aprovação de EVU para áreas com mais de 100.000m² até 200.000m² | D163: 1100 | E163: 5781.16
A164: 3026 | B164: CAUGE | C164: Aprovação de EVU para áreas com mais de 200.000m² até 300.000m² | D164: 1250 | E164: 6569.5
A165: 3027 | B165: CAUGE | C165: Aprovação de EVU para áreas com mais de 300.000m² | D165: 1350 | E165: 7095.06
A166: 3028 | B166: CAUGE | C166: Reconsideração de EVU | D166: isento | E166: -
A167: 3031 | B167: CAUGE | C167: Emissão do protocolo de Termo de Referência (TR) para áreas com até 1.000.000m² | D167: 1500 | E167: =$E$3*D167 -> 7883.4
A168: 3032 | B168: CAUGE | C168: Emissão do protocolo de TR para áreas com até 1.000.000m² | D168: 3000 | E168: 15766.8
A169: 3033 | B169: CAUGE | C169: Reconsideração do TR | D169: isento
A171: =A134 -> ESCRITÓRIO DE LICENCIAMENTO - TABELA DE PREÇOS E SERVIÇOS PARA O ANO DE 2023
D173: 1 UFM ¹ | E173: =E3 -> 5.2556
D175: Valores expressos em R$
A176: Código | C176: Análise e aprovação de EVU de parcelamento do solo pela Comissão de Análise e aprovação de Parcelamento do Solo (CTAAPS): | D176: UFM | E176: Valor
A177: 4010 | B177: CTAAPS | C177: Elaboração e emissão de diretrizes para áreas com até 5.000m² | D177: 150 | E177: =$E$3*D177 -> 788.34
A178: 4011 | B178: CTAAPS | C178: Elaboração e emissão de diretrizes para áreas com mais de 5.000m² até 10.000m² | D178: 160 | E178: 840.896
A179: 4012 | B179: CTAAPS | C179: Elaboração e emissão de diretrizes para áreas com mais de 10.000m² até 22.500m² | D179: 170 | E179: 893.452
A180: 4013 | B180: CTAAPS | C180: Elaboração e emissão de diretrizes para áreas com mais de 22.500m² até 40.000m² | D180: 180 | E180: 946.008
A181: 4014 | B181: CTAAPS | C181: Elaboração e emissão de diretrizes para áreas com mais de 40.000m² até 100.000m² | D181: 200 | E181: 1051.12
A182: 4015 | B182: CTAAPS | C182: Elaboração e emissão de diretrizes para áreas com mais de 100.000m² até 200.000m² | D182: 220 | E182: 1156.232
A183: 4016 | B183: CTAAPS | C183: Elaboração e emissão de diretrizes para áreas com mais de 200.000m² até 300.000m² | D183: 250 | E183: 1313.9
A184: 4017 | B184: CTAAPS | C184: Elaboração e emissão de diretrizes para áreas com mais de 300.000m² | D184: 280 | E184: 1471.568
A185: 4018 | B185: CTAAPS | C185: Reconsideração de diretrizes | D185: isento | E185: -
A186: 4020 | B186: CTAAPS | C186: Aprovação de EVU para áreas com até 5.000m² | D186: 300 | E186: =$E$3*D186 -> 1576.68
A187: 4021 | B187: CTAAPS | C187: Aprovação de EVU para áreas com mais de 5.000m² até 10.000m² | D187: 320 | E187: 1681.792
A188: 4022 | B188: CTAAPS | C188: Aprovação de EVU para áreas com mais de 10.000m² até 22.500m² | D188: 340 | E188: 1786.904
A189: 4023 | B189: CTAAPS | C189: Aprovação de EVU para áreas com mais de 22.500m² até 40.000m² | D189: 360 | E189: 1892.016
A190: 4024 | B190: CTAAPS | C190: Aprovação de EVU para áreas com mais de 40.000m² até 100.000m² | D190: 400 | E190: 2102.24
A191: 4025 | B191: CTAAPS | C191: Aprovação de EVU para áreas com mais de 100.000m² até 200.000m² | D191: 440 | E191: 2312.464
A192: 4026 | B192: CTAAPS | C192: Aprovação de EVU para áreas com mais de 200.000m² até 300.000m² | D192: 500 | E192: 2627.8
A193: 4027 | B193: CTAAPS | C193: Aprovação de EVU para áreas com mais de 300.000m2 | D193: 540 | E193: 2838.024
A194: 4028 | B194: CTAAPS | C194: Reconsideração de EVU | D194: isento | E194: -
A195: 4031 | B195: CTAAPS | C195: Aprovação de projeto urbanístico, 1ª fase, para áreas com mais de 22.500m² até 40.000m² | D195: 120 | E195: =$E$3*D195 -> 630.672
A196: 4032 | B196: CTAAPS | C196: Aprovação de projeto urbanístico, 1ª fase, para áreas com mais de 40.000m² até 100.000m² | D196: 160 | E196: 840.896
A197: 4033 | B197: CTAAPS | C197: Aprovação de projeto urbanístico, 1ª fase, para áreas com mais de 100.000m² até 200.000m² | D197: 200 | E197: 1051.12
A198: 4034 | B198: CTAAPS | C198: Aprovação de projeto urbanístico, 1ª fase, para áreas com mais de 200.000m² até 300.000m² | D198: 240 | E198: 1261.344
A199: 4035 | B199: CTAAPS | C199: Aprovação de projeto urbanístico, 1ª fase, para áreas com mais de 300.000m² | D199: 280 | E199: 1471.568
A200: 4041 | B200: CTAAPS | C200: Aprovação de projeto urbanístico, 2ª fase, para áreas com mais de 22.500m² até 40.000m² | D200: 60 | E200: 315.336
A201: 4042 | B201: CTAAPS | C201: Aprovação de projeto urbanístico, 2ª fase, para áreas com mais de 40.000m² até 100.000m² | D201: 80 | E201: 420.448
A202: 4043 | B202: CTAAPS | C202: Aprovação de projeto urbanístico, 2ª fase, para áreas com mais de 100.000m² até 200.000m² | D202: 100 | E202: 525.56
A203: 4044 | B203: CTAAPS | C203: Aprovação de projeto urbanístico, 2ª fase, para áreas com mais de 200.000m² até 300.000m² | D203: 120 | E203: 630.672
A204: 4045 | B204: CTAAPS | C204: Aprovação de projeto urbanístico, 2ª fase, para áreas com mais de 300.000m² | D204: 140 | E204: 735.784
A205: 4051 | B205: CTAAPS | C205: Aprovação de projeto urbanístico, 3ª fase, para áreas com mais de 22.500m² até 40.000m² | D205: 40 | E205: 210.224
A206: 4052 | B206: CTAAPS | C206: Aprovação de projeto urbanístico, 3ª fase, para áreas com mais de 40.00m² até 100.000m² | D206: 60 | E206: 315.336
A207: 4053 | B207: CTAAPS | C207: Aprovação de projeto urbanístico, 3ª fase, para áreas com mais de 100.000m² até 200.000m² | D207: 80 | E207: 420.448
A208: 4054 | B208: CTAAPS | C208: Aprovação de projeto urbanístico, 3ª fase, para áreas com mais de 200.000m² até 300.000m² | D208: 100 | E208: 525.56
A209: 4055 | B209: CTAAPS | C209: Aprovação de projeto urbanístico, 3ª fase, para áreas com mais de 300.000m² | D209: 120 | E209: 630.672
A210: 4061 | B210: CTAAPS | C210: Licenciamento urbanístico para áreas com até 40.000m² | D210: 40 | E210: 210.224
A211: 4062 | B211: CTAAPS | C211: Licenciamento urbanístico para áreas com mais de 40.000m² até 100.000m² | D211: 60 | E211: 315.336
A212: 4063 | B212: CTAAPS | C212: Licenciamento urbanístico para áreas com mais de 100.000m² até 200.000m² | D212: 80 | E212: 420.448
A213: 4064 | B213: CTAAPS | C213: Licenciamento urbanístico para áreas com mais de 200.000m² até 300.000m² | D213: 100 | E213: 525.56
A214: 4065 | B214: CTAAPS | C214: Licenciamento urbanístico para áreas com mais de 300.000m² | D214: 120 | E214: 630.672
A216: =A1 -> ESCRITÓRIO DE LICENCIAMENTO - TABELA DE PREÇOS E SERVIÇOS PARA O ANO DE 2023
D218: 1 UFM ¹ | E218: =E3 -> 5.2556
D220: Valores expressos em R$
A221: Código | C221: Estudo e autorização pela Comissão de Viabilidade de Edificações e Atividades (CEVEA) | D221: UFM | E221: Valor
A222: 5010 | B222: CEVEA | C222: Estudo e autorização por meio de emissão de parecer | D222: 250 | E222: =$E$3*D222 -> 1313.9
A223: 5011 | B223: CEVEA | C223: Reconsideração de parecer | D223: 125 | E223: 656.95
A225: Código | C225: Declaração municipal detalhada (DM) | D225: UFM | E225: Valor
A226: - | B226: - | C226: Terrenos com área de até 300m² | D226: 50 | E226: =$E$3*D226 -> 262.78
A227: - | B227: - | C227: Terrenos com mais de 300m² de área, até 1.000m² | D227: 70 | E227: =$E$3*D227 -> 367.892
... 36 more rows
